[Event "*** Titled Tuesday Blitz"]
[Site "Chess.com"]
[Date "2020.11.10"]
[Round "2"]
[White "beto-betun"]
[Black "mbachez"]
[Result "0-1"]
[WhiteElo "2191"]
[BlackElo "2410"]
[TimeControl "180+1"]
[EndTime "10:19:38 PST"]
[Termination "mbachez won on time"]

1. d4 {[%clk 0:03:00.9]} 1... Nf6 {[%clk 0:02:59.6]} 2. Nf3 {[%clk 0:03:01]}
2... c5 {[%clk 0:02:58.3]} 3. g3 {[%clk 0:02:59.5]} 3... cxd4 {[%clk 0:02:57.6]}
4. Nxd4 {[%clk 0:03:00.4]} 4... e5 {[%clk 0:02:57.8]} 5. Nb3 {[%clk 0:03:00.1]}
5... d5 {[%clk 0:02:57.9]} 6. Bg2 {[%clk 0:03:00]} 6... h6 {[%clk 0:02:57.8]} 7.
c4 {[%clk 0:02:59.5]} 7... Be6 {[%clk 0:02:51.1]} 8. cxd5 {[%clk 0:02:49.6]}
8... Bxd5 {[%clk 0:02:50.8]} 9. Bxd5 {[%clk 0:02:44.2]} 9... Qxd5 {[%clk
0:02:50.7]} 10. Qxd5 {[%clk 0:02:43.8]} 10... Nxd5 {[%clk 0:02:50.4]} 11. Bd2
{[%clk 0:02:29]} 11... Nc6 {[%clk 0:02:47.9]} 12. Nc3 {[%clk 0:02:27.7]} 12...
Nf6 {[%clk 0:02:45.9]} 13. O-O {[%clk 0:02:21.6]} 13... Bb4 {[%clk 0:02:45]} 14.
Rac1 {[%clk 0:02:12.4]} 14... Bxc3 {[%clk 0:02:42.9]} 15. Bxc3 {[%clk
0:02:12.4]} 15... Ne4 {[%clk 0:02:42.2]} 16. f3 {[%clk 0:01:34.7]} 16... Nxc3
{[%clk 0:02:34.8]} 17. Rxc3 {[%clk 0:01:35.6]} 17... O-O {[%clk 0:02:29]} 18.
Rd1 {[%clk 0:01:30.4]} 18... Rad8 {[%clk 0:02:27.5]} 19. Rcd3 {[%clk 0:01:30]}
19... Rxd3 {[%clk 0:02:25.6]} 20. Rxd3 {[%clk 0:01:30.9]} 20... f5 {[%clk
0:02:24.8]} 21. Rd7 {[%clk 0:01:28]} 21... Rf7 {[%clk 0:02:24.6]} 22. Rxf7
{[%clk 0:01:21.9]} 22... Kxf7 {[%clk 0:02:24]} 23. Kf2 {[%clk 0:01:21]} 23...
Ke7 {[%clk 0:02:22.1]} 24. Nc5 {[%clk 0:01:20]} 24... b6 {[%clk 0:02:21.7]} 25.
Nd3 {[%clk 0:01:18.5]} 25... Ke6 {[%clk 0:02:20.5]} 26. e3 {[%clk 0:01:14.6]}
26... e4 {[%clk 0:02:13.6]} 27. Nf4+ {[%clk 0:01:07.6]} 27... Ke5 {[%clk
0:02:07.8]} 28. Ng6+ {[%clk 0:01:02.6]} 28... Kf6 {[%clk 0:02:07.4]} 29. Nf4
{[%clk 0:00:57.7]} 29... Ne5 {[%clk 0:02:06.8]} 30. fxe4 {[%clk 0:00:48.8]}
30... fxe4 {[%clk 0:02:06.5]} 31. Nd5+ {[%clk 0:00:47.5]} 31... Ke6 {[%clk
0:02:04.7]} 32. Nc3 {[%clk 0:00:47.4]} 32... Nd3+ {[%clk 0:02:04]} 33. Ke2
{[%clk 0:00:46]} 33... Ke5 {[%clk 0:02:04.1]} 34. b3 {[%clk 0:00:43.9]} 34... a6
{[%clk 0:01:59.8]} 35. Nd1 {[%clk 0:00:28.1]} 35... Nc1+ {[%clk 0:01:57.6]} 36.
Kd2 {[%clk 0:00:25.6]} 36... Nxa2 {[%clk 0:01:56.9]} 37. Kc2 {[%clk 0:00:20.6]}
37... b5 {[%clk 0:01:41.2]} 38. Kb2 {[%clk 0:00:12.6]} 38... Nb4 {[%clk
0:01:39.3]} 39. Kc3 {[%clk 0:00:12.5]} 39... Nd5+ {[%clk 0:01:39.1]} 40. Kd2
{[%clk 0:00:11.3]} 40... a5 {[%clk 0:01:38.1]} 41. Kc2 {[%clk 0:00:10.6]} 41...
g5 {[%clk 0:01:35.4]} 42. Kd2 {[%clk 0:00:10.8]} 42... Kd6 {[%clk 0:01:34.8]}
43. Kc2 {[%clk 0:00:11.3]} 43... Kc5 {[%clk 0:01:34.6]} 44. Kb2 {[%clk
0:00:11.1]} 44... a4 {[%clk 0:01:34]} 45. bxa4 {[%clk 0:00:10.7]} 45... bxa4
{[%clk 0:01:34.2]} 46. Nf2 {[%clk 0:00:07.7]} 46... Nf6 {[%clk 0:01:30.5]} 47.
Ka3 {[%clk 0:00:06.9]} 47... Kb5 {[%clk 0:01:30.6]} 48. Nd1 {[%clk 0:00:06.3]}
48... Nd5 {[%clk 0:01:30.8]} 49. Nf2 {[%clk 0:00:04.5]} 49... Nc3 {[%clk
0:01:29.9]} 50. Kb2 {[%clk 0:00:02.1]} 50... Kb4 {[%clk 0:01:30.1]} 0-1

[Event "*** Titled Tuesday Blitz"]
[Site "Chess.com"]
[Date "2020.11.10"]
[Round "2"]
[White "Dinamo3"]
[Black "Kristina_Kim"]
[Result "1-0"]
[WhiteElo "2409"]
[BlackElo "2188"]
[TimeControl "180+1"]
[EndTime "10:19:38 PST"]
[Termination "Dinamo3 won by resignation"]

1. e4 {[%clk 0:03:00.9]} 1... c5 {[%clk 0:02:59.9]} 2. Nf3 {[%clk 0:03:00.8]}
2... g6 {[%clk 0:02:58.6]} 3. c3 {[%clk 0:03:00.2]} 3... d5 {[%clk 0:02:58.5]}
4. exd5 {[%clk 0:03:00.1]} 4... Qxd5 {[%clk 0:02:59.4]} 5. d4 {[%clk 0:03:00.7]}
5... Nc6 {[%clk 0:02:58.8]} 6. Be2 {[%clk 0:03:01]} 6... Nf6 {[%clk 0:02:45.7]}
7. O-O {[%clk 0:02:59.8]} 7... Bg7 {[%clk 0:02:40]} 8. dxc5 {[%clk 0:02:56.4]}
8... Qxc5 {[%clk 0:02:40.9]} 9. Be3 {[%clk 0:02:56.7]} 9... Qd5 {[%clk
0:02:34.6]} 10. Nbd2 {[%clk 0:02:50]} 10... O-O {[%clk 0:02:32.8]} 11. Bc4
{[%clk 0:02:35.1]} 11... Qd6 {[%clk 0:02:27.5]} 12. Qe2 {[%clk 0:02:28.3]} 12...
Bg4 {[%clk 0:01:54.7]} 13. h3 {[%clk 0:02:26.7]} 13... Bf5 {[%clk 0:01:43.3]}
14. Rfd1 {[%clk 0:02:23.5]} 14... Rad8 {[%clk 0:01:24.1]} 15. Nb3 {[%clk
0:02:06.7]} 15... Qc7 {[%clk 0:01:24.1]} 16. Nbd4 {[%clk 0:02:06.8]} 16... Be4
{[%clk 0:00:39.8]} 17. Nxc6 {[%clk 0:01:42.3]} 17... Qxc6 {[%clk 0:00:36.2]} 18.
Nd4 {[%clk 0:01:37.6]} 18... Qc7 {[%clk 0:00:26.6]} 19. Nb5 {[%clk 0:01:35.7]}
19... Qb8 {[%clk 0:00:13.8]} 20. Bxa7 {[%clk 0:01:35]} 20... Qc8 {[%clk
0:00:12.2]} 21. Bb6 {[%clk 0:01:25.6]} 21... Rxd1+ {[%clk 0:00:11.5]} 22. Rxd1
{[%clk 0:01:26.5]} 22... Bc6 {[%clk 0:00:09.1]} 23. a4 {[%clk 0:01:20.4]} 23...
e6 {[%clk 0:00:09.1]} 24. Nd6 {[%clk 0:01:02.4]} 24... Qa8 {[%clk 0:00:08.2]}
25. a5 {[%clk 0:01:02.3]} 25... Nd5 {[%clk 0:00:08.1]} 26. Bxd5 {[%clk 0:01:01]}
26... Bxd5 {[%clk 0:00:09]} 27. c4 {[%clk 0:00:55.9]} 27... Bc6 {[%clk
0:00:08.7]} 28. b4 {[%clk 0:00:56.2]} 28... e5 {[%clk 0:00:07.1]} 29. b5 {[%clk
0:00:54.6]} 29... Bd7 {[%clk 0:00:07.5]} 30. Qe4 {[%clk 0:00:48.5]} 30... f5
{[%clk 0:00:07.5]} 31. Qd5+ {[%clk 0:00:46.1]} 31... Kh8 {[%clk 0:00:07.5]} 32.
Nf7+ {[%clk 0:00:45.8]} 32... Rxf7 {[%clk 0:00:04.5]} 33. Qxf7 {[%clk
0:00:46.7]} 33... Be8 {[%clk 0:00:03.9]} 34. Qe7 {[%clk 0:00:45.5]} 34... h6
{[%clk 0:00:03.5]} 35. Rd8 {[%clk 0:00:43.5]} 1-0

[Event "*** Titled Tuesday Blitz"]
[Site "Chess.com"]
[Date "2020.11.10"]
[Round "2"]
[White "MartinMatthiesen"]
[Black "vrekhson"]
[Result "1-0"]
[WhiteElo "2416"]
[BlackElo "2203"]
[TimeControl "180+1"]
[EndTime "10:19:40 PST"]
[Termination "MartinMatthiesen won by checkmate"]

1. d4 {[%clk 0:03:00.9]} 1... Nf6 {[%clk 0:02:58.5]} 2. c4 {[%clk 0:03:00.2]}
2... c5 {[%clk 0:02:58.3]} 3. d5 {[%clk 0:02:59.9]} 3... b5 {[%clk 0:02:58.1]}
4. cxb5 {[%clk 0:02:59.5]} 4... a6 {[%clk 0:02:58.6]} 5. bxa6 {[%clk 0:02:58.9]}
5... g6 {[%clk 0:02:56.7]} 6. Nc3 {[%clk 0:02:58.1]} 6... Bxa6 {[%clk
0:02:56.5]} 7. e4 {[%clk 0:02:51.8]} 7... Bxf1 {[%clk 0:02:57.4]} 8. Kxf1 {[%clk
0:02:52]} 8... d6 {[%clk 0:02:57.3]} 9. g3 {[%clk 0:02:52]} 9... Bg7 {[%clk
0:02:57.2]} 10. Kg2 {[%clk 0:02:51.9]} 10... O-O {[%clk 0:02:57.4]} 11. Nf3
{[%clk 0:02:51.7]} 11... Nbd7 {[%clk 0:02:57.3]} 12. a4 {[%clk 0:02:50.5]} 12...
Qa5 {[%clk 0:02:55.3]} 13. Ra3 {[%clk 0:02:47.7]} 13... Rfb8 {[%clk 0:02:54.5]}
14. Re1 {[%clk 0:02:38.6]} 14... Ng4 {[%clk 0:02:54.4]} 15. Re2 {[%clk
0:02:35.3]} 15... Nge5 {[%clk 0:02:53.7]} 16. Nxe5 {[%clk 0:02:13.1]} 16... Nxe5
{[%clk 0:02:54.6]} 17. Rc2 {[%clk 0:02:11.8]} 17... Nc4 {[%clk 0:02:50.6]} 18.
Ra2 {[%clk 0:02:11]} 18... Qb4 {[%clk 0:02:45.5]} 19. Qe2 {[%clk 0:02:01.8]}
19... Nb6 {[%clk 0:02:35.7]} 20. b3 {[%clk 0:01:24.3]} 20... Qxb3 {[%clk
0:02:21]} 21. Rab2 {[%clk 0:01:20.2]} 21... Qxc3 {[%clk 0:01:48.5]} 22. Rxc3
{[%clk 0:01:18.1]} 22... Bxc3 {[%clk 0:01:49.4]} 23. Rb1 {[%clk 0:01:09.3]}
23... Rxa4 {[%clk 0:01:06.9]} 24. Qb5 {[%clk 0:01:05.6]} 24... Rb4 {[%clk
0:01:04.9]} 25. Rxb4 {[%clk 0:01:03.9]} 25... Bxb4 {[%clk 0:01:02.6]} 26. Qc6
{[%clk 0:01:01.1]} 26... Nc4 {[%clk 0:00:50.9]} 27. Qc7 {[%clk 0:00:57.6]} 27...
Ra8 {[%clk 0:00:45.5]} 28. Qxe7 {[%clk 0:00:56.3]} 28... Kg7 {[%clk 0:00:42.2]}
29. Bg5 {[%clk 0:00:53.8]} 29... Bc3 {[%clk 0:00:42.4]} 30. Qb7 {[%clk
0:00:41.6]} 30... Ra3 {[%clk 0:00:21.5]} 31. Be7 {[%clk 0:00:41]} 31... Be5
{[%clk 0:00:17]} 32. Qc8 {[%clk 0:00:37.7]} 32... Kh6 {[%clk 0:00:05.6]} 33.
Bf8+ {[%clk 0:00:33.9]} 33... Kh5 {[%clk 0:00:04.1]} 34. Qh3+ {[%clk 0:00:32.3]}
34... Kg5 {[%clk 0:00:04.6]} 35. Qh4# {[%clk 0:00:32.5]} 1-0

[Event "*** Titled Tuesday Blitz"]
[Site "Chess.com"]
[Date "2020.11.10"]
[Round "2"]
[White "LyonBeast"]
[Black "MokshanovAlexey"]
[Result "1-0"]
[WhiteElo "3072"]
[BlackElo "2609"]
[TimeControl "180+1"]
[EndTime "10:19:41 PST"]
[Termination "LyonBeast won on time"]

1. Nf3 {[%clk 0:03:00.9]} 1... d5 {[%clk 0:02:59.1]} 2. g3 {[%clk 0:02:58.4]}
2... Nf6 {[%clk 0:02:57.4]} 3. Bg2 {[%clk 0:02:57.3]} 3... Bf5 {[%clk
0:02:54.3]} 4. O-O {[%clk 0:02:55.7]} 4... c6 {[%clk 0:02:54]} 5. c4 {[%clk
0:02:53.2]} 5... e6 {[%clk 0:02:51.6]} 6. cxd5 {[%clk 0:02:42.1]} 6... exd5
{[%clk 0:02:51.2]} 7. d3 {[%clk 0:02:41.2]} 7... Be7 {[%clk 0:02:45.8]} 8. Qb3
{[%clk 0:02:40.4]} 8... Qb6 {[%clk 0:02:40.5]} 9. Qc2 {[%clk 0:02:40.4]} 9...
O-O {[%clk 0:02:36.6]} 10. Nc3 {[%clk 0:02:39.7]} 10... h6 {[%clk 0:02:31.4]}
11. e4 {[%clk 0:02:39.2]} 11... dxe4 {[%clk 0:02:31]} 12. dxe4 {[%clk
0:02:39.5]} 12... Bh7 {[%clk 0:02:31.4]} 13. Be3 {[%clk 0:02:37.9]} 13... Qa5
{[%clk 0:02:28.4]} 14. Rad1 {[%clk 0:02:33.3]} 14... Nbd7 {[%clk 0:02:20.1]} 15.
a3 {[%clk 0:02:31.4]} 15... Rfe8 {[%clk 0:01:57.8]} 16. Rfe1 {[%clk 0:02:25.1]}
16... Bf8 {[%clk 0:01:33.7]} 17. Bf4 {[%clk 0:01:53.5]} 17... Nb6 {[%clk
0:00:54.7]} 18. Nd2 {[%clk 0:01:39.1]} 18... Qh5 {[%clk 0:00:46.7]} 19. h3
{[%clk 0:01:36.1]} 19... Nbd5 {[%clk 0:00:31.9]} 20. g4 {[%clk 0:01:28.2]} 20...
Qg6 {[%clk 0:00:25.1]} 21. Bg3 {[%clk 0:01:21.3]} 21... Nxc3 {[%clk 0:00:23.3]}
22. Qxc3 {[%clk 0:01:21]} 22... Qg5 {[%clk 0:00:18.7]} 23. e5 {[%clk 0:01:13]}
23... Nd5 {[%clk 0:00:18.2]} 24. Qb3 {[%clk 0:01:07.4]} 24... Rad8 {[%clk
0:00:15.8]} 25. Qxb7 {[%clk 0:00:53.7]} 25... Nf4 {[%clk 0:00:02.7]} 26. Nf3
{[%clk 0:00:53.2]} 26... Rxd1 {[%clk 0:00:02.5]} 27. Rxd1 {[%clk 0:00:54.1]}
27... Ne2+ {[%clk 0:00:01.8]} 28. Kh2 {[%clk 0:00:54.4]} 28... Qg6 {[%clk
0:00:02.1]} 29. Qxa7 {[%clk 0:00:47.2]} 29... Nxg3 {[%clk 0:00:01.9]} 30. fxg3
{[%clk 0:00:48.1]} 30... h5 {[%clk 0:00:02.3]} 31. gxh5 {[%clk 0:00:44.4]} 31...
Qxh5 {[%clk 0:00:02.5]} 32. Qd7 {[%clk 0:00:44.6]} 32... Re6 {[%clk 0:00:02.1]}
33. Qc8 {[%clk 0:00:43.2]} 33... Bf5 {[%clk 0:00:01.7]} 34. Rd8 {[%clk
0:00:40.8]} 1-0

[Event "*** Titled Tuesday Blitz"]
[Site "Chess.com"]
[Date "2020.11.10"]
[Round "2"]
[White "Fandorine"]
[Black "Artyom_ChessMate"]
[Result "1-0"]
[WhiteElo "2840"]
[BlackElo "2550"]
[TimeControl "180+1"]
[EndTime "10:19:41 PST"]
[Termination "Fandorine won on time"]

1. e4 {[%clk 0:03:00.9]} 1... c5 {[%clk 0:02:58.4]} 2. Be2 {[%clk 0:02:58.8]}
2... d6 {[%clk 0:02:56.5]} 3. f4 {[%clk 0:02:59.2]} 3... Nc6 {[%clk 0:02:56]} 4.
Nf3 {[%clk 0:02:59.6]} 4... g6 {[%clk 0:02:52.9]} 5. O-O {[%clk 0:02:59.7]} 5...
Bg7 {[%clk 0:02:52]} 6. c3 {[%clk 0:03:00.1]} 6... Nf6 {[%clk 0:02:48.9]} 7. d3
{[%clk 0:03:00.3]} 7... O-O {[%clk 0:02:42.7]} 8. Kh1 {[%clk 0:03:00]} 8... Rb8
{[%clk 0:02:41.5]} 9. Be3 {[%clk 0:02:58.5]} 9... b5 {[%clk 0:02:41.4]} 10. a3
{[%clk 0:02:58.8]} 10... a5 {[%clk 0:02:39.8]} 11. Nbd2 {[%clk 0:02:59.3]} 11...
Ba6 {[%clk 0:02:35.9]} 12. d4 {[%clk 0:02:57.8]} 12... cxd4 {[%clk 0:01:36.9]}
13. cxd4 {[%clk 0:02:58.7]} 13... d5 {[%clk 0:01:26.3]} 14. e5 {[%clk 0:02:58]}
14... Ng4 {[%clk 0:01:25.1]} 15. Bg1 {[%clk 0:02:57.9]} 15... Qb6 {[%clk
0:01:19.3]} 16. Nb3 {[%clk 0:02:37.6]} 16... a4 {[%clk 0:01:07.6]} 17. Nc5
{[%clk 0:02:37.2]} 17... Bc8 {[%clk 0:01:08.1]} 18. Rc1 {[%clk 0:02:32.6]} 18...
Na5 {[%clk 0:01:07]} 19. h3 {[%clk 0:01:59.2]} 19... Nh6 {[%clk 0:01:05.7]} 20.
g4 {[%clk 0:01:59.6]} 20... Nc4 {[%clk 0:00:54.7]} 21. Rc2 {[%clk 0:01:49.1]}
21... f6 {[%clk 0:00:25.6]} 22. Bd3 {[%clk 0:01:39.9]} 22... fxe5 {[%clk
0:00:23.1]} 23. dxe5 {[%clk 0:01:40.8]} 23... Rxf4 {[%clk 0:00:18.1]} 24. Nd7
{[%clk 0:01:37.2]} 24... Bxd7 {[%clk 0:00:16]} 25. Bxb6 {[%clk 0:01:35.9]} 25...
Nxb6 {[%clk 0:00:14.3]} 26. e6 {[%clk 0:01:32.7]} 26... Bc8 {[%clk 0:00:04.6]}
27. Ng5 {[%clk 0:01:32.6]} 27... Rxf1+ {[%clk 0:00:03.5]} 28. Qxf1 {[%clk
0:01:33.5]} 28... Bb7 {[%clk 0:00:03.6]} 29. Rc7 {[%clk 0:01:27.5]} 29... Rf8
{[%clk 0:00:03.8]} 30. Rxb7 {[%clk 0:01:19.3]} 30... Rxf1+ {[%clk 0:00:02.5]}
31. Bxf1 {[%clk 0:01:20.2]} 31... Nc4 {[%clk 0:00:02.4]} 32. Rb8+ {[%clk
0:01:16.7]} 32... Bf8 {[%clk 0:00:02.1]} 33. Rxb5 {[%clk 0:01:17.2]} 33... Ne3
{[%clk 0:00:01.6]} 34. Bd3 {[%clk 0:01:17.2]} 34... d4 {[%clk 0:00:01.6]} 35.
Rb8 {[%clk 0:01:17]} 35... Nd5 {[%clk 0:00:02.2]} 36. Bc2 {[%clk 0:01:09.9]}
36... Nf4 {[%clk 0:00:02.2]} 37. Bxa4 {[%clk 0:01:09.6]} 37... d3 {[%clk
0:00:02.8]} 38. Rd8 {[%clk 0:01:08.7]} 38... Kg7 {[%clk 0:00:01.7]} 39. b4
{[%clk 0:01:09.2]} 39... d2 {[%clk 0:00:01.8]} 40. Rxd2 {[%clk 0:01:08.4]} 1-0

[Event "*** Titled Tuesday Blitz"]
[Site "Chess.com"]
[Date "2020.11.10"]
[Round "2"]
[White "hungrycaterpillar4"]
[Black "natelleka"]
[Result "1-0"]
[WhiteElo "2620"]
[BlackElo "2167"]
[TimeControl "180+1"]
[EndTime "10:19:45 PST"]
[Termination "hungrycaterpillar4 won on time"]

1. e4 {[%clk 0:03:00.9]} 1... e5 {[%clk 0:02:59.3]} 2. Nf3 {[%clk 0:03:00.5]}
2... Nf6 {[%clk 0:02:59.7]} 3. d4 {[%clk 0:02:59.3]} 3... Nxe4 {[%clk
0:02:59.3]} 4. Bd3 {[%clk 0:02:59.2]} 4... Nc6 {[%clk 0:02:59.6]} 5. Bxe4 {[%clk
0:02:59.2]} 5... d5 {[%clk 0:02:59]} 6. Nxe5 {[%clk 0:02:34]} 6... Nxe5 {[%clk
0:02:31]} 7. dxe5 {[%clk 0:02:30.6]} 7... dxe4 {[%clk 0:02:30.7]} 8. Qxd8+
{[%clk 0:02:31.5]} 8... Kxd8 {[%clk 0:02:30.9]} 9. Nc3 {[%clk 0:02:32.2]} 9...
Bb4 {[%clk 0:02:18.3]} 10. Bg5+ {[%clk 0:02:29.5]} 10... Ke8 {[%clk 0:02:13.1]}
11. O-O-O {[%clk 0:02:29.1]} 11... Bg4 {[%clk 0:01:57.5]} 12. Rd4 {[%clk
0:01:39.8]} 12... Bxc3 {[%clk 0:01:51.9]} 13. bxc3 {[%clk 0:01:40.7]} 13... h6
{[%clk 0:00:55.3]} 14. Bh4 {[%clk 0:01:27.4]} 14... Bf5 {[%clk 0:00:39.1]} 15.
Rhd1 {[%clk 0:01:01.7]} 15... g5 {[%clk 0:00:38.4]} 16. Bg3 {[%clk 0:01:02]}
16... Ke7 {[%clk 0:00:37]} 17. Kd2 {[%clk 0:00:46]} 17... Rad8 {[%clk
0:00:35.7]} 18. Ke3 {[%clk 0:00:45.9]} 18... Rxd4 {[%clk 0:00:22.3]} 19. cxd4
{[%clk 0:00:46.1]} 19... c6 {[%clk 0:00:21.1]} 20. c4 {[%clk 0:00:46]} 20... Rd8
{[%clk 0:00:20.5]} 21. d5 {[%clk 0:00:46.1]} 21... cxd5 {[%clk 0:00:19.9]} 22.
cxd5 {[%clk 0:00:47]} 22... Bg4 {[%clk 0:00:20.1]} 23. Rd2 {[%clk 0:00:45]}
23... Rc8 {[%clk 0:00:15.5]} 24. Kxe4 {[%clk 0:00:43.3]} 24... Rc3 {[%clk
0:00:13.9]} 25. h3 {[%clk 0:00:37.6]} 25... Rc4+ {[%clk 0:00:12.8]} 26. Kd3
{[%clk 0:00:35.5]} 26... Rc5 {[%clk 0:00:04]} 27. Kd4 {[%clk 0:00:35.4]} 27...
Ra5 {[%clk 0:00:02.9]} 28. hxg4 {[%clk 0:00:35.6]} 28... Ra4+ {[%clk 0:00:03.4]}
29. Kc3 {[%clk 0:00:36]} 29... Rxg4 {[%clk 0:00:03.6]} 30. Rd4 {[%clk 0:00:32]}
1-0

[Event "*** Titled Tuesday Blitz"]
[Site "Chess.com"]
[Date "2020.11.10"]
[Round "2"]
[White "rududuyk"]
[Black "AttractiveMustard"]
[Result "1/2-1/2"]
[WhiteElo "2167"]
[BlackElo "2396"]
[TimeControl "180+1"]
[EndTime "10:19:48 PST"]
[Termination "Game drawn by repetition"]

1. e4 {[%clk 0:03:00.9]} 1... c5 {[%clk 0:02:57.4]} 2. Nc3 {[%clk 0:02:59.9]}
2... Nc6 {[%clk 0:02:57.3]} 3. Bc4 {[%clk 0:02:59]} 3... g6 {[%clk 0:02:55]} 4.
f4 {[%clk 0:02:58.4]} 4... Bg7 {[%clk 0:02:55]} 5. Nf3 {[%clk 0:02:58.4]} 5...
d6 {[%clk 0:02:52.4]} 6. d3 {[%clk 0:02:58.5]} 6... e6 {[%clk 0:02:52.3]} 7. O-O
{[%clk 0:02:57.9]} 7... Nge7 {[%clk 0:02:52.3]} 8. Qe1 {[%clk 0:02:56.5]} 8...
O-O {[%clk 0:02:52.1]} 9. f5 {[%clk 0:02:56.2]} 9... d5 {[%clk 0:02:50.1]} 10.
Bb3 {[%clk 0:02:49.9]} 10... Nd4 {[%clk 0:02:42.6]} 11. Qh4 {[%clk 0:02:42.4]}
11... Nec6 {[%clk 0:01:57.5]} 12. Bg5 {[%clk 0:02:32.1]} 12... f6 {[%clk
0:01:57]} 13. Bh6 {[%clk 0:02:32]} 13... Nxb3 {[%clk 0:01:40.2]} 14. fxg6 {[%clk
0:02:13.6]} 14... hxg6 {[%clk 0:01:29.3]} 15. axb3 {[%clk 0:02:03.6]} 15... g5
{[%clk 0:01:25.2]} 16. Qh5 {[%clk 0:01:58]} 16... Nb4 {[%clk 0:01:00.1]} 17. Qg6
{[%clk 0:01:49.1]} 17... Qe7 {[%clk 0:00:58.5]} 18. Nxg5 {[%clk 0:01:19.7]}
18... fxg5 {[%clk 0:00:50.8]} 19. Rxf8+ {[%clk 0:01:18.1]} 19... Qxf8 {[%clk
0:00:42.5]} 20. Rf1 {[%clk 0:01:16.7]} 20... Qe7 {[%clk 0:00:33.7]} 21. Bxg5
{[%clk 0:01:09.1]} 21... Qc7 {[%clk 0:00:25.7]} 22. Qe8+ {[%clk 0:00:57.5]}
22... Kh7 {[%clk 0:00:24.5]} 23. Rf3 {[%clk 0:00:45]} 23... e5 {[%clk
0:00:20.5]} 24. Rf7 {[%clk 0:00:36.2]} 24... Qb6 {[%clk 0:00:14]} 25. Bf6 {[%clk
0:00:30.8]} 25... Qxf6 {[%clk 0:00:06.2]} 26. Rxf6 {[%clk 0:00:30.3]} 26... Bxf6
{[%clk 0:00:07.1]} 27. Qf7+ {[%clk 0:00:24.5]} 27... Bg7 {[%clk 0:00:06.4]} 28.
Qh5+ {[%clk 0:00:19.8]} 28... Kg8 {[%clk 0:00:05]} 29. Qe8+ {[%clk 0:00:19.7]}
29... Kh7 {[%clk 0:00:04.9]} 30. Qh5+ {[%clk 0:00:19.4]} 30... Kg8 {[%clk
0:00:04.7]} 31. Qe8+ {[%clk 0:00:17.9]} 31... Kh7 {[%clk 0:00:05]} 32. Qh5+
{[%clk 0:00:17.7]} 1/2-1/2

[Event "*** Titled Tuesday Blitz"]
[Site "Chess.com"]
[Date "2020.11.10"]
[Round "2"]
[White "Larisa004"]
[Black "banane_verte"]
[Result "0-1"]
[WhiteElo "2174"]
[BlackElo "2408"]
[TimeControl "180+1"]
[EndTime "10:19:49 PST"]
[Termination "banane_verte won on time"]

1. e4 {[%clk 0:03:00.9]} 1... d5 {[%clk 0:02:58.2]} 2. exd5 {[%clk 0:02:59]}
2... Qxd5 {[%clk 0:02:59.1]} 3. Nc3 {[%clk 0:02:58.9]} 3... Qa5 {[%clk
0:02:59.2]} 4. d4 {[%clk 0:02:56.7]} 4... Nf6 {[%clk 0:02:59.4]} 5. Nf3 {[%clk
0:02:52]} 5... Nc6 {[%clk 0:02:59.4]} 6. Be2 {[%clk 0:02:45.6]} 6... Bg4 {[%clk
0:02:58.7]} 7. O-O {[%clk 0:02:44.7]} 7... O-O-O {[%clk 0:02:58.3]} 8. Be3
{[%clk 0:02:18.4]} 8... e5 {[%clk 0:02:58.2]} 9. d5 {[%clk 0:01:27.5]} 9... Nxd5
{[%clk 0:02:34.5]} 10. Nxd5 {[%clk 0:01:17]} 10... Qxd5 {[%clk 0:02:35.4]} 11.
Qxd5 {[%clk 0:01:15.1]} 11... Rxd5 {[%clk 0:02:36.3]} 12. Bc4 {[%clk 0:01:15]}
12... Bxf3 {[%clk 0:02:33.7]} 13. gxf3 {[%clk 0:01:13.2]} 13... Rd7 {[%clk
0:02:34.6]} 14. Rad1 {[%clk 0:01:04.1]} 14... Bd6 {[%clk 0:02:33.9]} 15. c3
{[%clk 0:00:59.1]} 15... Kb8 {[%clk 0:02:31.6]} 16. b4 {[%clk 0:00:58.4]} 16...
Rhd8 {[%clk 0:02:29]} 17. a4 {[%clk 0:00:48.8]} 17... e4 {[%clk 0:02:18.2]} 18.
f4 {[%clk 0:00:48]} 18... g5 {[%clk 0:02:16.2]} 19. fxg5 {[%clk 0:00:33.1]}
19... Bxh2+ {[%clk 0:02:14.1]} 20. Kxh2 {[%clk 0:00:34]} 20... Rxd1 {[%clk
0:02:09.8]} 21. Rxd1 {[%clk 0:00:34.9]} 21... Rxd1 {[%clk 0:02:09.1]} 22. Bxf7
{[%clk 0:00:35]} 22... Ne5 {[%clk 0:02:03.3]} 23. Be6 {[%clk 0:00:26.6]} 23...
Rd6 {[%clk 0:02:01.3]} 24. Bg8 {[%clk 0:00:22.1]} 24... Ng4+ {[%clk 0:02:01]}
25. Kg3 {[%clk 0:00:21.5]} 25... Nxe3 {[%clk 0:01:57.2]} 26. fxe3 {[%clk
0:00:22.4]} 26... Rg6 {[%clk 0:01:55.5]} 27. Bxh7 {[%clk 0:00:21.8]} 27... Rxg5+
{[%clk 0:01:56.2]} 28. Kf4 {[%clk 0:00:22]} 28... Rg1 {[%clk 0:01:51.9]} 29.
Bxe4 {[%clk 0:00:21.9]} 29... Rc1 {[%clk 0:01:50.2]} 30. Bd5 {[%clk 0:00:15.6]}
30... Rxc3 {[%clk 0:01:49.7]} 31. e4 {[%clk 0:00:15.9]} 31... c6 {[%clk
0:01:48.2]} 32. Bf7 {[%clk 0:00:15.5]} 32... Kc7 {[%clk 0:01:45.9]} 33. e5
{[%clk 0:00:14.5]} 33... Kd7 {[%clk 0:01:46.5]} 34. Kf5 {[%clk 0:00:13.5]} 34...
Ke7 {[%clk 0:01:45.9]} 35. Be6 {[%clk 0:00:06.7]} 35... Rf3+ {[%clk 0:01:44.9]}
36. Ke4 {[%clk 0:00:06.4]} 36... Ra3 {[%clk 0:01:44.2]} 37. Bc8 {[%clk
0:00:05.5]} 37... Rxa4 {[%clk 0:01:44.3]} 38. Kd3 {[%clk 0:00:03.9]} 38... Rxb4
{[%clk 0:01:43.8]} 39. e6 {[%clk 0:00:03.8]} 39... a5 {[%clk 0:01:44.6]} 40. Kc3
{[%clk 0:00:03.5]} 40... b5 {[%clk 0:01:42.8]} 41. Bd7 {[%clk 0:00:02.5]} 41...
Rc4+ {[%clk 0:01:41.3]} 42. Kb3 {[%clk 0:00:02.2]} 42... a4+ {[%clk 0:01:42.2]}
43. Ka3 {[%clk 0:00:02.2]} 43... Kd6 {[%clk 0:01:41.3]} 44. Bc8 {[%clk
0:00:01.7]} 44... Re4 {[%clk 0:01:01.4]} 0-1